[Event "Early-Titled-Tuesday-Blitz-September-05-2023"]
[Site "Chess.com"]
[Date "2023.09.05"]
[Round "2"]
[White "BlitzWizard04"]
[Black "Chopper1905"]
[Result "0-1"]
[WhiteElo "2591"]
[BlackElo "2871"]
[TimeControl "180+1"]
[EndTime "8:18:12 PDT"]
[Termination "Chopper1905 won by resignation"]

1. e4 {[%clk 0:03:00.9]} 1... e5 {[%clk 0:02:57.5]} 2. Nf3 {[%clk 0:03:01.1]}
2... Nc6 {[%clk 0:02:52.9]} 3. Bc4 {[%clk 0:03:01.6]} 3... Bc5 {[%clk
0:02:51.7]} 4. d4 {[%clk 0:03:01.5]} 4... Bxd4 {[%clk 0:02:49.7]} 5. Nxd4 {[%clk
0:02:59.9]} 5... Nxd4 {[%clk 0:02:49.2]} 6. Be3 {[%clk 0:02:59.8]} 6... Ne6
{[%clk 0:02:44.9]} 7. Bxe6 {[%clk 0:02:57.3]} 7... dxe6 {[%clk 0:02:34.7]} 8.
Qh5 {[%clk 0:02:55.1]} 8... Qd6 {[%clk 0:02:12.6]} 9. Nd2 {[%clk 0:02:53.5]}
9... h6 {[%clk 0:02:07.4]} 10. O-O-O {[%clk 0:02:43.9]} 10... Nf6 {[%clk
0:02:07.2]} 11. Qf3 {[%clk 0:02:44.5]} 11... Bd7 {[%clk 0:01:51.3]} 12. Kb1
{[%clk 0:02:23.9]} 12... Bc6 {[%clk 0:01:46.8]} 13. Nc4 {[%clk 0:02:21.3]} 13...
Qb4 {[%clk 0:01:41.3]} 14. Nxe5 {[%clk 0:02:21.5]} 14... Qxe4 {[%clk 0:01:16.3]}
15. Nxc6 {[%clk 0:02:20.1]} 15... Qxf3 {[%clk 0:01:04.5]} 16. gxf3 {[%clk
0:02:21]} 16... bxc6 {[%clk 0:01:05.1]} 17. Rd3 {[%clk 0:02:19.2]} 17... Nd5
{[%clk 0:01:03.4]} 18. Rhd1 {[%clk 0:02:14.2]} 18... Ke7 {[%clk 0:00:59.2]} 19.
c4 {[%clk 0:02:14.1]} 19... Nxe3 {[%clk 0:00:53.5]} 20. Rd7+ {[%clk 0:02:13.5]}
20... Kf6 {[%clk 0:00:54]} 21. fxe3 {[%clk 0:02:12.9]} 21... Rac8 {[%clk
0:00:54.7]} 22. R1d3 {[%clk 0:02:01.9]} 22... a5 {[%clk 0:00:43.1]} 23. Kc2
{[%clk 0:01:58.4]} 23... g5 {[%clk 0:00:42.3]} 24. c5 {[%clk 0:01:52.4]} 24...
h5 {[%clk 0:00:41.4]} 25. h3 {[%clk 0:01:48.5]} 25... Rhg8 {[%clk 0:00:38.4]}
26. R3d4 {[%clk 0:01:41.7]} 26... e5 {[%clk 0:00:35.9]} 27. Ra4 {[%clk
0:01:35.8]} 27... Ke6 {[%clk 0:00:36.5]} 28. Rd3 {[%clk 0:01:31.1]} 28... Ra8
{[%clk 0:00:30.1]} 29. f4 {[%clk 0:01:07.5]} 29... g4 {[%clk 0:00:27.6]} 30.
hxg4 {[%clk 0:01:06.7]} 30... hxg4 {[%clk 0:00:27.3]} 31. fxe5 {[%clk
0:01:05.1]} 31... g3 {[%clk 0:00:27.1]} 32. Rd1 {[%clk 0:01:03.8]} 32... g2
{[%clk 0:00:25]} 33. Rg1 {[%clk 0:01:04.5]} 33... Rg3 {[%clk 0:00:18.2]} 34. Kd2
{[%clk 0:00:37.4]} 34... Rb8 {[%clk 0:00:18.3]} 35. b3 {[%clk 0:00:36.2]} 35...
Rb4 {[%clk 0:00:18.9]} 36. Rxa5 {[%clk 0:00:34.3]} 36... Re4 {[%clk 0:00:14.7]}
37. Ra6 {[%clk 0:00:20.1]} 37... Kd5 {[%clk 0:00:12.9]} 38. Ra7 {[%clk
0:00:16.9]} 38... Rexe3 {[%clk 0:00:06.1]} 39. Rxc7 {[%clk 0:00:17.4]} 39...
Ref3 {[%clk 0:00:04.7]} 40. Ke2 {[%clk 0:00:14.9]} 40... Ke4 {[%clk 0:00:05.1]}
41. Rxc6 {[%clk 0:00:12.6]} 41... Rf5 {[%clk 0:00:04.1]} 42. e6 {[%clk
0:00:12.2]} 42... Re3+ {[%clk 0:00:03.6]} 43. Kd2 {[%clk 0:00:11.3]} 43... Rf2+
{[%clk 0:00:03.7]} 44. Kd1 {[%clk 0:00:10.6]} 44... Rf1+ {[%clk 0:00:04.1]} 45.
Kd2 {[%clk 0:00:11.3]} 45... Rxg1 {[%clk 0:00:04.4]} 46. e7 {[%clk 0:00:09.8]}
46... Rd1+ {[%clk 0:00:04.7]} 47. Kc2 {[%clk 0:00:09.5]} 47... Rc1+ {[%clk
0:00:04.3]} 48. Kb2 {[%clk 0:00:08.9]} 48... Kd5 {[%clk 0:00:03.9]} 49. Rd6+
{[%clk 0:00:07.4]} 49... Kxc5 {[%clk 0:00:04.4]} 50. Kxc1 {[%clk 0:00:06.2]}
50... Kxd6 {[%clk 0:00:03.2]} 0-1

[Event "Early-Titled-Tuesday-Blitz-September-05-2023"]
[Site "Chess.com"]
[Date "2023.09.05"]
[Round "2"]
[White "FairChess_on_YouTube"]
[Black "twofoxniel"]
[Result "1-0"]
[WhiteElo "3057"]
[BlackElo "2663"]
[TimeControl "180+1"]
[EndTime "8:18:14 PDT"]
[Termination "FairChess_on_YouTube won on time"]

1. d4 {[%clk 0:02:57.1]} 1... d5 {[%clk 0:02:59.7]} 2. Nf3 {[%clk 0:02:54.2]}
2... c6 {[%clk 0:03:00.1]} 3. Bf4 {[%clk 0:02:50.7]} 3... Qb6 {[%clk 0:03:00.1]}
4. Qc1 {[%clk 0:02:43]} 4... Nf6 {[%clk 0:03:00.4]} 5. e3 {[%clk 0:02:42.9]}
5... Bf5 {[%clk 0:03:00.8]} 6. c4 {[%clk 0:02:36.1]} 6... e6 {[%clk 0:03:00.5]}
7. Nc3 {[%clk 0:02:36.1]} 7... Nbd7 {[%clk 0:03:00.5]} 8. c5 {[%clk 0:02:34.6]}
8... Qd8 {[%clk 0:03:00.2]} 9. b4 {[%clk 0:02:35.2]} 9... Be7 {[%clk 0:03:00.4]}
10. Be2 {[%clk 0:02:34.2]} 10... Nh5 {[%clk 0:02:52.4]} 11. Be5 {[%clk
0:02:33.7]} 11... Nhf6 {[%clk 0:02:40.4]} 12. b5 {[%clk 0:02:30.6]} 12... O-O
{[%clk 0:02:36.4]} 13. O-O {[%clk 0:02:30]} 13... Nxe5 {[%clk 0:02:36.2]} 14.
Nxe5 {[%clk 0:02:29]} 14... Qc7 {[%clk 0:02:32.1]} 15. Qa3 {[%clk 0:02:02.7]}
15... Nd7 {[%clk 0:02:18.8]} 16. Nxd7 {[%clk 0:01:46.8]} 16... Qxd7 {[%clk
0:02:18.7]} 17. Rfc1 {[%clk 0:01:36]} 17... Bf6 {[%clk 0:02:16.5]} 18. f4 {[%clk
0:01:34.1]} 18... g5 {[%clk 0:01:58.5]} 19. Rf1 {[%clk 0:01:10.3]} 19... gxf4
{[%clk 0:01:55.3]} 20. Rxf4 {[%clk 0:01:11.2]} 20... e5 {[%clk 0:01:28.7]} 21.
Rf3 {[%clk 0:01:07.1]} 21... exd4 {[%clk 0:01:25.9]} 22. Raf1 {[%clk 0:01:07]}
22... dxc3 {[%clk 0:01:11.6]} 23. Rxf5 {[%clk 0:01:07.1]} 23... Bg7 {[%clk
0:01:12]} 24. Rg5 {[%clk 0:01:01]} 24... Kh8 {[%clk 0:01:10.2]} 25. Rxg7 {[%clk
0:00:57.8]} 25... Kxg7 {[%clk 0:01:09.3]} 26. Qxc3+ {[%clk 0:00:58.4]} 26... f6
{[%clk 0:01:09.9]} 27. Qd4 {[%clk 0:00:50.2]} 27... Rae8 {[%clk 0:01:02.9]} 28.
Bd3 {[%clk 0:00:50.5]} 28... Qe7 {[%clk 0:00:40.8]} 29. Rf3 {[%clk 0:00:47.6]}
29... Kh8 {[%clk 0:00:40.3]} 30. Rh3 {[%clk 0:00:39.7]} 30... Qg7 {[%clk
0:00:11.2]} 31. Rxh7+ {[%clk 0:00:28.8]} 31... Qxh7 {[%clk 0:00:12.1]} 32. Bxh7
{[%clk 0:00:29.1]} 32... Kxh7 {[%clk 0:00:13]} 33. Qh4+ {[%clk 0:00:29.4]} 33...
Kg7 {[%clk 0:00:13]} 34. Qg4+ {[%clk 0:00:28.8]} 34... Kh8 {[%clk 0:00:12.6]}
35. Qh3+ {[%clk 0:00:27.2]} 35... Kg7 {[%clk 0:00:12.6]} 36. bxc6 {[%clk
0:00:26.8]} 36... bxc6 {[%clk 0:00:12.1]} 37. Qd7+ {[%clk 0:00:27.4]} 37... Kg6
{[%clk 0:00:10.5]} 38. Qxc6 {[%clk 0:00:28]} 38... Rxe3 {[%clk 0:00:10.6]} 39.
Qxd5 {[%clk 0:00:28.1]} 39... Re5 {[%clk 0:00:11]} 40. Qd3+ {[%clk 0:00:25.4]}
40... Kf7 {[%clk 0:00:10.5]} 41. Qd7+ {[%clk 0:00:23.4]} 41... Kg6 {[%clk
0:00:09.4]} 42. c6 {[%clk 0:00:24]} 42... Rfe8 {[%clk 0:00:09.3]} 43. c7 {[%clk
0:00:19.9]} 43... Re1+ {[%clk 0:00:09]} 44. Kf2 {[%clk 0:00:20.5]} 44... R1e2+
{[%clk 0:00:08.9]} 45. Kg3 {[%clk 0:00:20.6]} 45... R2e3+ {[%clk 0:00:09.4]} 46.
Kh4 {[%clk 0:00:19]} 46... f5 {[%clk 0:00:04.2]} 47. Qc6+ {[%clk 0:00:11.6]}
47... Kf7 {[%clk 0:00:02.1]} 48. Qc4+ {[%clk 0:00:10.4]} 1-0

[Event "Early-Titled-Tuesday-Blitz-September-05-2023"]
[Site "Chess.com"]
[Date "2023.09.05"]
[Round "2"]
[White "BogdanDeac"]
[Black "MKlose11"]
[Result "1-0"]
[WhiteElo "3041"]
[BlackElo "2657"]
[TimeControl "180+1"]
[EndTime "8:18:14 PDT"]
[Termination "BogdanDeac won by resignation"]

1. b3 {[%clk 0:03:00.9]} 1... Nf6 {[%clk 0:02:59.1]} 2. Bb2 {[%clk 0:03:01.2]}
2... g6 {[%clk 0:03:00]} 3. Nf3 {[%clk 0:03:01.8]} 3... Bg7 {[%clk 0:03:00.1]}
4. g3 {[%clk 0:03:02.5]} 4... c5 {[%clk 0:02:59]} 5. c4 {[%clk 0:03:02.3]} 5...
Nc6 {[%clk 0:02:59.2]} 6. Bg2 {[%clk 0:03:02.7]} 6... d6 {[%clk 0:02:59.5]} 7.
O-O {[%clk 0:03:00]} 7... O-O {[%clk 0:02:59.1]} 8. d4 {[%clk 0:03:00.2]} 8...
cxd4 {[%clk 0:03:00]} 9. Nxd4 {[%clk 0:03:00.9]} 9... Bd7 {[%clk 0:03:00.9]} 10.
Nc2 {[%clk 0:03:00.3]} 10... Qa5 {[%clk 0:03:00.5]} 11. Nc3 {[%clk 0:02:57.9]}
11... Qh5 {[%clk 0:03:00]} 12. Ne3 {[%clk 0:02:46.4]} 12... Rfe8 {[%clk
0:02:57.4]} 13. Qd2 {[%clk 0:02:43.6]} 13... Rac8 {[%clk 0:02:50.5]} 14. Ncd5
{[%clk 0:02:41.5]} 14... Nxd5 {[%clk 0:02:42.6]} 15. Nxd5 {[%clk 0:02:39.6]}
15... Bxb2 {[%clk 0:02:32.2]} 16. Qxb2 {[%clk 0:02:40.5]} 16... Be6 {[%clk
0:02:32.9]} 17. Nf4 {[%clk 0:02:38]} 17... Qe5 {[%clk 0:02:32.4]} 18. Qxe5
{[%clk 0:02:32.2]} 18... dxe5 {[%clk 0:02:31.7]} 19. Nxe6 {[%clk 0:02:32.2]}
19... fxe6 {[%clk 0:02:32.6]} 20. Rfd1 {[%clk 0:02:32.2]} 20... Red8 {[%clk
0:02:26.8]} 21. e3 {[%clk 0:02:31]} 21... Rd6 {[%clk 0:02:19]} 22. c5 {[%clk
0:02:20.8]} 22... Rdd8 {[%clk 0:02:17.9]} 23. a3 {[%clk 0:02:18.3]} 23... b6
{[%clk 0:02:00.2]} 24. Rxd8+ {[%clk 0:01:50.4]} 24... Nxd8 {[%clk 0:01:59.4]}
25. cxb6 {[%clk 0:01:50.7]} 25... axb6 {[%clk 0:01:59]} 26. a4 {[%clk 0:01:51]}
26... Nf7 {[%clk 0:01:38.8]} 27. b4 {[%clk 0:01:37.8]} 27... Nd6 {[%clk
0:01:38.3]} 28. a5 {[%clk 0:01:37.8]} 28... bxa5 {[%clk 0:01:37.1]} 29. bxa5
{[%clk 0:01:36.1]} 29... e4 {[%clk 0:01:31.2]} 30. a6 {[%clk 0:01:33]} 30... Ra8
{[%clk 0:01:29.8]} 31. h4 {[%clk 0:01:28.8]} 31... Ra7 {[%clk 0:01:27]} 32. Bf1
{[%clk 0:01:26.2]} 32... Kf7 {[%clk 0:01:26.3]} 33. Kg2 {[%clk 0:01:24.6]} 33...
Kf6 {[%clk 0:01:25.6]} 34. g4 {[%clk 0:01:21]} 34... h6 {[%clk 0:01:23.2]} 35.
Ra5 {[%clk 0:01:14.7]} 35... e5 {[%clk 0:01:22.2]} 36. Be2 {[%clk 0:01:09.8]}
36... g5 {[%clk 0:01:18.4]} 37. hxg5+ {[%clk 0:01:10]} 37... hxg5 {[%clk
0:01:19.3]} 38. Kf1 {[%clk 0:01:09.3]} 38... Ke6 {[%clk 0:01:13.6]} 39. Ke1
{[%clk 0:01:08.4]} 39... Nf7 {[%clk 0:01:04.3]} 40. Bc4+ {[%clk 0:01:07.4]}
40... Kf6 {[%clk 0:01:04.2]} 41. Bxf7 {[%clk 0:00:07.9]} 41... Kxf7 {[%clk
0:01:03.1]} 42. Kd2 {[%clk 0:00:08.5]} 42... Ke6 {[%clk 0:00:56.6]} 43. Kc3
{[%clk 0:00:08.5]} 43... Kd6 {[%clk 0:00:57.2]} 44. Kc4 {[%clk 0:00:08.4]} 44...
Kc6 {[%clk 0:00:55.4]} 45. Rxe5 {[%clk 0:00:07.7]} 45... Kd6 {[%clk 0:00:39.4]}
46. Ra5 {[%clk 0:00:06.2]} 46... Ra8 {[%clk 0:00:31.7]} 47. a7 {[%clk
0:00:05.6]} 47... Kc6 {[%clk 0:00:29.8]} 48. Kd4 {[%clk 0:00:05.3]} 48... Kb6
{[%clk 0:00:29.7]} 49. Ra1 {[%clk 0:00:05.1]} 49... Kb7 {[%clk 0:00:25.5]} 50.
Kxe4 {[%clk 0:00:05.1]} 50... e6 {[%clk 0:00:25.9]} 51. Ke5 {[%clk 0:00:05.4]}
51... Kb6 {[%clk 0:00:25.8]} 52. f4 {[%clk 0:00:05.2]} 52... gxf4 {[%clk
0:00:25.3]} 53. exf4 {[%clk 0:00:06.1]} 53... Kb7 {[%clk 0:00:25.2]} 54. g5
{[%clk 0:00:06.2]} 54... Kc7 {[%clk 0:00:22.1]} 55. g6 {[%clk 0:00:06.1]} 55...
Kd7 {[%clk 0:00:22.3]} 56. g7 {[%clk 0:00:06.3]} 56... Ke7 {[%clk 0:00:22.7]}
57. g8=Q {[%clk 0:00:05.1]} 1-0

[Event "Early-Titled-Tuesday-Blitz-September-05-2023"]
[Site "Chess.com"]
[Date "2023.09.05"]
[Round "2"]
[White "the_drake"]
[Black "noblerone"]
[Result "0-1"]
[WhiteElo "2369"]
[BlackElo "2545"]
[TimeControl "180+1"]
[EndTime "8:18:14 PDT"]
[Termination "noblerone won by resignation"]

1. d4 {[%clk 0:03:00.9]} 1... d5 {[%clk 0:02:59.7]} 2. c4 {[%clk 0:02:56.7]}
2... c6 {[%clk 0:02:59.7]} 3. Nc3 {[%clk 0:02:55.7]} 3... Nf6 {[%clk 0:03:00]}
4. cxd5 {[%clk 0:02:56.6]} 4... cxd5 {[%clk 0:02:59.8]} 5. Bg5 {[%clk
0:02:49.8]} 5... Ne4 {[%clk 0:02:44.8]} 6. Bf4 {[%clk 0:02:47.4]} 6... Nxc3
{[%clk 0:02:42.7]} 7. bxc3 {[%clk 0:02:46.8]} 7... Nc6 {[%clk 0:02:42.2]} 8. e3
{[%clk 0:02:45.8]} 8... Qa5 {[%clk 0:02:36.5]} 9. Qd2 {[%clk 0:02:43.4]} 9...
Bf5 {[%clk 0:02:31.5]} 10. Nf3 {[%clk 0:02:42.8]} 10... e6 {[%clk 0:02:31.4]}
11. Bd3 {[%clk 0:02:40.7]} 11... Bxd3 {[%clk 0:02:29.4]} 12. Qxd3 {[%clk
0:02:41.6]} 12... Be7 {[%clk 0:02:27.8]} 13. O-O {[%clk 0:02:41.8]} 13... O-O
{[%clk 0:02:27.2]} 14. Rfb1 {[%clk 0:02:36]} 14... b6 {[%clk 0:02:16.4]} 15. a3
{[%clk 0:02:04.4]} 15... Rac8 {[%clk 0:01:56.3]} 16. c4 {[%clk 0:01:58.7]} 16...
Qa6 {[%clk 0:01:49]} 17. Nd2 {[%clk 0:01:54.9]} 17... Na5 {[%clk 0:01:47.9]} 18.
Rc1 {[%clk 0:01:35.7]} 18... Nxc4 {[%clk 0:01:31.6]} 19. a4 {[%clk 0:01:10.5]}
19... Bb4 {[%clk 0:01:23.5]} 20. Nf3 {[%clk 0:01:06.9]} 20... f6 {[%clk
0:01:18.9]} 21. e4 {[%clk 0:01:01.1]} 21... Qb7 {[%clk 0:01:18.1]} 22. exd5
{[%clk 0:00:59.1]} 22... exd5 {[%clk 0:01:13.6]} 23. Qf5 {[%clk 0:00:54.3]}
23... Rfe8 {[%clk 0:01:00.8]} 24. Rab1 {[%clk 0:00:47]} 24... a5 {[%clk
0:00:57]} 25. h4 {[%clk 0:00:46.8]} 25... Qf7 {[%clk 0:00:53.1]} 26. h5 {[%clk
0:00:44]} 26... Qe6 {[%clk 0:00:48.9]} 27. Qd3 {[%clk 0:00:43.3]} 27... Qe4
{[%clk 0:00:46.1]} 28. Qxe4 {[%clk 0:00:38.1]} 28... dxe4 {[%clk 0:00:36.6]} 29.
Nh4 {[%clk 0:00:37.6]} 29... Red8 {[%clk 0:00:36.8]} 30. Nf5 {[%clk 0:00:36.8]}
30... Kf7 {[%clk 0:00:31.9]} 31. g4 {[%clk 0:00:31.8]} 31... g6 {[%clk
0:00:31.2]} 32. Ng3 {[%clk 0:00:26.1]} 32... Rxd4 {[%clk 0:00:22.9]} 33. Be3
{[%clk 0:00:25.9]} 33... Rdd8 {[%clk 0:00:13.5]} 34. Nxe4 {[%clk 0:00:25.9]}
34... Ne5 {[%clk 0:00:13.4]} 35. Rxc8 {[%clk 0:00:19.8]} 35... Rxc8 {[%clk
0:00:14.3]} 36. Rxb4 {[%clk 0:00:20.1]} 36... axb4 {[%clk 0:00:09.8]} 37. Nd6+
{[%clk 0:00:20.4]} 37... Ke6 {[%clk 0:00:10.1]} 38. Nxc8 {[%clk 0:00:21.3]}
38... Nxg4 {[%clk 0:00:09.8]} 39. Nxb6 {[%clk 0:00:20]} 39... b3 {[%clk
0:00:08.8]} 40. hxg6 {[%clk 0:00:20]} 40... b2 {[%clk 0:00:08.1]} 41. gxh7
{[%clk 0:00:19]} 41... b1=Q+ {[%clk 0:00:08.6]} 42. Kg2 {[%clk 0:00:19]} 42...
Qxh7 {[%clk 0:00:09.5]} 43. Nc4 {[%clk 0:00:18.7]} 43... Nxe3+ {[%clk
0:00:09.4]} 44. Nxe3 {[%clk 0:00:18.3]} 44... Qe4+ {[%clk 0:00:10]} 45. Kg3
{[%clk 0:00:18]} 45... Qxa4 {[%clk 0:00:10.9]} 46. Kf3 {[%clk 0:00:18.6]} 46...
f5 {[%clk 0:00:10.4]} 47. Kg3 {[%clk 0:00:18.3]} 47... Qe4 {[%clk 0:00:10.3]}
48. Ng2 {[%clk 0:00:17.3]} 48... Qg4+ {[%clk 0:00:10]} 49. Kh2 {[%clk
0:00:17.3]} 49... f4 {[%clk 0:00:09.5]} 50. Ne1 {[%clk 0:00:13]} 50... Qe2
{[%clk 0:00:07.9]} 51. Ng2 {[%clk 0:00:08.3]} 51... Qxf2 {[%clk 0:00:07.2]} 52.
Kh1 {[%clk 0:00:08.7]} 52... f3 {[%clk 0:00:05.5]} 53. Nf4+ {[%clk 0:00:05.7]}
53... Kf7 {[%clk 0:00:05.4]} 0-1

[Event "Early-Titled-Tuesday-Blitz-September-05-2023"]
[Site "Chess.com"]
[Date "2023.09.05"]
[Round "2"]
[White "cthulhuuu"]
[Black "GMG"]
[Result "0-1"]
[WhiteElo "2458"]
[BlackElo "2784"]
[TimeControl "180+1"]
[EndTime "8:18:20 PDT"]
[Termination "GMG won by resignation"]

1. e4 {[%clk 0:03:00.1]} 1... c5 {[%clk 0:02:55.9]} 2. Nf3 {[%clk 0:02:59.7]}
2... Nc6 {[%clk 0:02:56.5]} 3. g3 {[%clk 0:02:59.8]} 3... g6 {[%clk 0:02:55.3]}
4. Bg2 {[%clk 0:02:59.1]} 4... Bg7 {[%clk 0:02:55.8]} 5. O-O {[%clk 0:02:59.1]}
5... d6 {[%clk 0:02:54.7]} 6. d3 {[%clk 0:02:59]} 6... e5 {[%clk 0:02:54.1]} 7.
Nc3 {[%clk 0:02:58.7]} 7... Nge7 {[%clk 0:02:54.2]} 8. Nd2 {[%clk 0:02:59]} 8...
a6 {[%clk 0:02:48.9]} 9. a4 {[%clk 0:02:58.5]} 9... h5 {[%clk 0:02:39.1]} 10. h3
{[%clk 0:02:55.9]} 10... Be6 {[%clk 0:02:38.4]} 11. Nc4 {[%clk 0:02:52.6]} 11...
b6 {[%clk 0:02:09.9]} 12. Nd5 {[%clk 0:02:50.2]} 12... Bxd5 {[%clk 0:02:07.8]}
13. exd5 {[%clk 0:02:49.8]} 13... Nb4 {[%clk 0:02:04.8]} 14. Ne3 {[%clk
0:02:48.2]} 14... a5 {[%clk 0:02:05]} 15. c3 {[%clk 0:02:43.8]} 15... Na6 {[%clk
0:02:05.3]} 16. Nc4 {[%clk 0:02:18.7]} 16... O-O {[%clk 0:01:35.9]} 17. f4
{[%clk 0:02:18.1]} 17... exf4 {[%clk 0:01:11.5]} 18. Bxf4 {[%clk 0:02:18.8]}
18... Nf5 {[%clk 0:01:11.9]} 19. Qd2 {[%clk 0:01:36.6]} 19... Ra7 {[%clk
0:00:51.3]} 20. g4 {[%clk 0:01:28.2]} 20... hxg4 {[%clk 0:00:47]} 21. hxg4
{[%clk 0:01:28.9]} 21... Ne7 {[%clk 0:00:47.7]} 22. Bxd6 {[%clk 0:01:09.1]}
22... Rd7 {[%clk 0:00:47.2]} 23. Qf4 {[%clk 0:01:04.7]} 23... f5 {[%clk
0:00:42.1]} 24. g5 {[%clk 0:00:54.8]} 24... Re8 {[%clk 0:00:31.9]} 25. Rae1
{[%clk 0:00:54.3]} 25... Nc8 {[%clk 0:00:32.2]} 26. Rxe8+ {[%clk 0:00:41.5]}
26... Qxe8 {[%clk 0:00:33.1]} 27. Be5 {[%clk 0:00:41.7]} 27... Bxe5 {[%clk
0:00:32]} 28. Nxe5 {[%clk 0:00:28.6]} 28... Re7 {[%clk 0:00:32]} 29. Nc6 {[%clk
0:00:19.2]} 29... Re2 {[%clk 0:00:30.8]} 30. d6 {[%clk 0:00:18.8]} 30... Rxg2+
{[%clk 0:00:30.6]} 31. Kxg2 {[%clk 0:00:19]} 31... Qxc6+ {[%clk 0:00:31.2]} 32.
Kg3 {[%clk 0:00:17.4]} 32... Qxd6 {[%clk 0:00:29.4]} 33. Re1 {[%clk 0:00:17.9]}
33... Kf7 {[%clk 0:00:28.5]} 34. Re5 {[%clk 0:00:09]} 34... Nb8 {[%clk
0:00:25.6]} 35. d4 {[%clk 0:00:06.9]} 35... Nc6 {[%clk 0:00:21.1]} 36. Re1
{[%clk 0:00:04.1]} 36... Qxf4+ {[%clk 0:00:20.9]} 37. Kxf4 {[%clk 0:00:05]}
37... cxd4 {[%clk 0:00:21.6]} 38. cxd4 {[%clk 0:00:05.9]} 38... Nxd4 {[%clk
0:00:21.4]} 39. Rd1 {[%clk 0:00:06.8]} 39... Ne6+ {[%clk 0:00:18.9]} 40. Ke5
{[%clk 0:00:07.4]} 40... Ke7 {[%clk 0:00:18]} 41. Rc1 {[%clk 0:00:07.9]} 41...
Kd7 {[%clk 0:00:17.6]} 42. Rd1+ {[%clk 0:00:07.9]} 42... Ke7 {[%clk 0:00:17.5]}
43. Rc1 {[%clk 0:00:08.8]} 43... Nc5 {[%clk 0:00:18.1]} 44. Kd5 {[%clk
0:00:08.3]} 44... Na7 {[%clk 0:00:16.4]} 45. Re1+ {[%clk 0:00:08.4]} 45... Kd7
{[%clk 0:00:16.3]} 46. Kc4 {[%clk 0:00:08.2]} 46... Nc6 {[%clk 0:00:15.9]} 47.
Kb5 {[%clk 0:00:08.6]} 47... Nd3 {[%clk 0:00:15.8]} 48. Rd1 {[%clk 0:00:08.6]}
48... Ne5 {[%clk 0:00:14.4]} 49. Kxb6 {[%clk 0:00:09.2]} 49... Nc4+ {[%clk
0:00:12]} 50. Kb5 {[%clk 0:00:07.2]} 50... Nxb2 {[%clk 0:00:12.9]} 51. Rd2
{[%clk 0:00:07.8]} 51... f4 {[%clk 0:00:12.8]} 52. Kxa5 {[%clk 0:00:06]} 52...
f3 {[%clk 0:00:13.3]} 53. Kb6 {[%clk 0:00:04.9]} 53... f2 {[%clk 0:00:13.6]} 54.
Rxf2 {[%clk 0:00:05.3]} 54... Nxf2 {[%clk 0:00:14.5]} 55. a5 {[%clk 0:00:05.5]}
55... Nc4+ {[%clk 0:00:15.1]} 56. Kb5 {[%clk 0:00:06]} 56... Nxa5 {[%clk
0:00:16]} 57. Kxa5 {[%clk 0:00:06.9]} 57... Nh3 {[%clk 0:00:16.9]} 58. Kb4
{[%clk 0:00:07.6]} 58... Nxg5 {[%clk 0:00:17.8]} 0-1

[Event "Early-Titled-Tuesday-Blitz-September-05-2023"]
[Site "Chess.com"]
[Date "2023.09.05"]
[Round "2"]
[White "Mikedannnn"]
[Black "Anton_Demchenko"]
[Result "0-1"]
[WhiteElo "2615"]
[BlackElo "2933"]
[TimeControl "180+1"]
[EndTime "8:18:23 PDT"]
[Termination "Anton_Demchenko won on time"]

1. e4 {[%clk 0:03:00.9]} 1... e5 {[%clk 0:03:00]} 2. Nf3 {[%clk 0:03:01.1]} 2...
Nc6 {[%clk 0:03:00.6]} 3. Bb5 {[%clk 0:03:01.8]} 3... a6 {[%clk 0:03:00.8]} 4.
Bxc6 {[%clk 0:03:02.2]} 4... dxc6 {[%clk 0:03:01.1]} 5. O-O {[%clk 0:03:02.4]}
5... Qf6 {[%clk 0:03:01.4]} 6. d3 {[%clk 0:02:46.9]} 6... c5 {[%clk 0:02:58.5]}
7. Be3 {[%clk 0:02:45.7]} 7... Bd6 {[%clk 0:02:55.4]} 8. Nbd2 {[%clk 0:02:45.1]}
8... Ne7 {[%clk 0:02:54.6]} 9. c3 {[%clk 0:02:29.3]} 9... Nc6 {[%clk 0:02:49.4]}
10. Nc4 {[%clk 0:02:05.3]} 10... Bg4 {[%clk 0:02:41.4]} 11. h3 {[%clk
0:02:01.6]} 11... Bxf3 {[%clk 0:02:41.7]} 12. Qxf3 {[%clk 0:01:59.8]} 12... Qxf3
{[%clk 0:02:40.7]} 13. gxf3 {[%clk 0:02:00.7]} 13... g5 {[%clk 0:02:34.9]} 14.
Rad1 {[%clk 0:01:33.3]} 14... O-O-O {[%clk 0:02:33.9]} 15. Kh2 {[%clk
0:01:32.5]} 15... h6 {[%clk 0:02:28.8]} 16. Bc1 {[%clk 0:01:32.6]} 16... Rd7
{[%clk 0:02:22.4]} 17. a3 {[%clk 0:01:26]} 17... Rhd8 {[%clk 0:02:12.8]} 18. Ne3
{[%clk 0:01:23.5]} 18... Bf8 {[%clk 0:02:09.5]} 19. Nd5 {[%clk 0:01:23.5]} 19...
Ne7 {[%clk 0:02:06.9]} 20. c4 {[%clk 0:01:23.7]} 20... Ng6 {[%clk 0:01:52.9]}
21. Be3 {[%clk 0:01:15.2]} 21... Kb8 {[%clk 0:01:52.1]} 22. Kg3 {[%clk
0:00:42.9]} 22... c6 {[%clk 0:01:34.7]} 23. Nc3 {[%clk 0:00:37.6]} 23... Rxd3
{[%clk 0:01:35.4]} 24. Rxd3 {[%clk 0:00:36.3]} 24... Rxd3 {[%clk 0:01:35.8]} 25.
Kg4 {[%clk 0:00:33.8]} 25... b5 {[%clk 0:01:28.1]} 26. Kf5 {[%clk 0:00:20.1]}
26... Be7 {[%clk 0:01:25.2]} 27. Kg4 {[%clk 0:00:19.6]} 27... Kc7 {[%clk
0:01:22.8]} 28. Rc1 {[%clk 0:00:15.5]} 28... Kd7 {[%clk 0:01:22.3]} 29. Ne2
{[%clk 0:00:14.4]} 29... b4 {[%clk 0:01:16.4]} 30. axb4 {[%clk 0:00:12.9]} 30...
cxb4 {[%clk 0:01:16.5]} 31. Ra1 {[%clk 0:00:12.6]} 31... Rb3 {[%clk 0:01:12.2]}
32. Bc1 {[%clk 0:00:11.1]} 32... h5+ {[%clk 0:01:05.1]} 33. Kxh5 {[%clk
0:00:09.1]} 33... Rxf3 {[%clk 0:01:05.8]} 34. Rxa6 {[%clk 0:00:07.7]} 34... Rxf2
{[%clk 0:01:03.3]} 35. Ng3 {[%clk 0:00:07.9]} 35... Rc2 {[%clk 0:00:58.7]} 36.
Be3 {[%clk 0:00:07.3]} 36... Rxb2 {[%clk 0:00:58.6]} 37. Nf5 {[%clk 0:00:07.6]}
37... Bf8 {[%clk 0:00:11.7]} 38. Ra7+ {[%clk 0:00:07.7]} 38... Kc8 {[%clk
0:00:10.6]} 39. Kxg5 {[%clk 0:00:07.9]} 39... b3 {[%clk 0:00:07.8]} 40. Kf6
{[%clk 0:00:07.9]} 40... Re2 {[%clk 0:00:07.4]} 41. Ra3 {[%clk 0:00:06.2]} 41...
b2 {[%clk 0:00:07.3]} 42. Rb3 {[%clk 0:00:06.5]} 42... Ba3 {[%clk 0:00:05.8]}
43. Kxf7 {[%clk 0:00:06.3]} 43... Nf4 {[%clk 0:00:06.4]} 44. Bxf4 {[%clk
0:00:05.1]} 44... exf4 {[%clk 0:00:06.5]} 45. Ne7+ {[%clk 0:00:05.6]} 45... Kd7
{[%clk 0:00:05.5]} 46. Rb7+ {[%clk 0:00:04.3]} 46... Kd6 {[%clk 0:00:05.9]} 47.
Kf6 {[%clk 0:00:03.5]} 47... Kc5 {[%clk 0:00:05.6]} 48. Nf5 {[%clk 0:00:01.6]}
48... f3 {[%clk 0:00:06]} 49. e5 {[%clk 0:00:01.2]} 49... f2 {[%clk 0:00:06.3]}
0-1